[Event "Late-Titled-Tuesday-Blitz-January-30-2024"]
[Site "Chess.com"]
[Date "2024.01.30"]
[Round "1"]
[White "PoXerStar"]
[Black "ameetghasi100"]
[Result "0-1"]
[WhiteElo "2425"]
[BlackElo "2745"]
[TimeControl "180+1"]
[EndTime "14:06:18 PST"]
[Termination "ameetghasi100 won on time"]

1. c4 {[%clk 0:03:00.3]} 1... g6 {[%clk 0:02:59.2]} 2. g3 {[%clk 0:03:00]} 2...
Bg7 {[%clk 0:03:00.1]} 3. Nc3 {[%clk 0:03:00.4]} 3... Nf6 {[%clk 0:03:01]} 4.
Bg2 {[%clk 0:03:00]} 4... O-O {[%clk 0:03:01.9]} 5. d4 {[%clk 0:03:00.5]} 5...
d6 {[%clk 0:03:01.7]} 6. h3 {[%clk 0:03:00.2]} 6... Nc6 {[%clk 0:03:01.9]} 7.
Nf3 {[%clk 0:02:55.5]} 7... e5 {[%clk 0:02:59.8]} 8. Be3 {[%clk 0:02:55.1]} 8...
Bf5 {[%clk 0:02:57]} 9. O-O {[%clk 0:02:50.5]} 9... Re8 {[%clk 0:02:53.4]} 10.
dxe5 {[%clk 0:02:42.7]} 10... dxe5 {[%clk 0:02:48.9]} 11. Rc1 {[%clk 0:02:22.3]}
11... Qc8 {[%clk 0:02:47]} 12. Kh2 {[%clk 0:02:21.8]} 12... h6 {[%clk
0:02:42.2]} 13. Nd5 {[%clk 0:02:08.6]} 13... Kh7 {[%clk 0:02:40.4]} 14. Qb3
{[%clk 0:01:54.2]} 14... Be6 {[%clk 0:02:26.4]} 15. Rfd1 {[%clk 0:01:52.9]}
15... a5 {[%clk 0:02:24.7]} 16. a3 {[%clk 0:01:14.6]} 16... a4 {[%clk
0:02:22.7]} 17. Qc2 {[%clk 0:01:14.3]} 17... Ra5 {[%clk 0:02:22.1]} 18. Nxf6+
{[%clk 0:01:07]} 18... Bxf6 {[%clk 0:02:23]} 19. Nd2 {[%clk 0:01:07.4]} 19...
Bg7 {[%clk 0:02:21.8]} 20. Ne4 {[%clk 0:00:53.3]} 20... f5 {[%clk 0:02:13]} 21.
Nc5 {[%clk 0:00:50.9]} 21... e4 {[%clk 0:02:13]} 22. Nxe6 {[%clk 0:00:50.2]}
22... Qxe6 {[%clk 0:02:13.9]} 23. Rd5 {[%clk 0:00:31.3]} 23... Rxd5 {[%clk
0:02:10.9]} 24. cxd5 {[%clk 0:00:32.2]} 24... Qxd5 {[%clk 0:02:11.8]} 25. Qxa4
{[%clk 0:00:32.8]} 25... h5 {[%clk 0:02:04.2]} 26. b4 {[%clk 0:00:32.6]} 26...
Be5 {[%clk 0:01:47.8]} 27. Rc5 {[%clk 0:00:23.6]} 27... Qd6 {[%clk 0:01:39.1]}
28. b5 {[%clk 0:00:23.4]} 28... Ne7 {[%clk 0:01:38.7]} 29. Qc2 {[%clk
0:00:14.5]} 29... h4 {[%clk 0:01:35.8]} 30. Bf4 {[%clk 0:00:02.1]} 30... Bxf4
{[%clk 0:01:34]} 31. gxf4 {[%clk 0:00:03]} 31... Qxf4+ {[%clk 0:01:34.8]} 32.
Kg1 {[%clk 0:00:03.7]} 32... e3 {[%clk 0:01:34.4]} 33. Rxc7 {[%clk 0:00:03]}
33... Qxf2+ {[%clk 0:01:32.4]} 34. Kh1 {[%clk 0:00:03.9]} 34... Qe1+ {[%clk
0:01:31.5]} 35. Kh2 {[%clk 0:00:04.3]} 35... Qg3+ {[%clk 0:01:32.4]} 36. Kh1
{[%clk 0:00:04.9]} 36... Kh6 {[%clk 0:01:29.9]} 37. Qc3 {[%clk 0:00:03.8]} 37...
Rd8 {[%clk 0:01:27.5]} 0-1

[Event "Late-Titled-Tuesday-Blitz-January-30-2024"]
[Site "Chess.com"]
[Date "2024.01.30"]
[Round "1"]
[White "Grindaveci"]
[Black "Ali_rastbod"]
[Result "0-1"]
[WhiteElo "2397"]
[BlackElo "2696"]
[TimeControl "180+1"]
[EndTime "14:06:18 PST"]
[Termination "Ali_rastbod won by resignation"]

1. e4 {[%clk 0:02:59.1]} 1... c5 {[%clk 0:03:00.9]} 2. c3 {[%clk 0:02:58.9]}
2... Qa5 {[%clk 0:02:58.3]} 3. Nf3 {[%clk 0:02:56.2]} 3... Nc6 {[%clk
0:02:55.8]} 4. Be2 {[%clk 0:02:54.5]} 4... Nf6 {[%clk 0:02:53.7]} 5. Qc2 {[%clk
0:02:51]} 5... g6 {[%clk 0:02:48.4]} 6. O-O {[%clk 0:02:50.4]} 6... d5 {[%clk
0:02:38.4]} 7. exd5 {[%clk 0:02:42]} 7... Nxd5 {[%clk 0:02:38]} 8. d4 {[%clk
0:02:38]} 8... cxd4 {[%clk 0:02:36.3]} 9. cxd4 {[%clk 0:02:24.3]} 9... Bg7
{[%clk 0:02:36.1]} 10. Nc3 {[%clk 0:02:23.8]} 10... O-O {[%clk 0:02:34.1]} 11.
Rd1 {[%clk 0:02:19.5]} 11... Rd8 {[%clk 0:02:28.6]} 12. Bg5 {[%clk 0:02:11.3]}
12... Bg4 {[%clk 0:02:21.3]} 13. Qb3 {[%clk 0:01:59.9]} 13... Bxf3 {[%clk
0:02:17.1]} 14. Bxf3 {[%clk 0:01:58.5]} 14... Nxc3 {[%clk 0:02:15.7]} 15. bxc3
{[%clk 0:01:20.5]} 15... Qxg5 {[%clk 0:02:13.4]} 16. Qxb7 {[%clk 0:01:20.4]}
16... Na5 {[%clk 0:02:11.1]} 17. Qa6 {[%clk 0:01:20]} 17... Rac8 {[%clk
0:02:09.6]} 18. h4 {[%clk 0:01:17.3]} 18... Qf5 {[%clk 0:02:05.5]} 19. Rab1
{[%clk 0:01:14.6]} 19... Rxc3 {[%clk 0:02:03.2]} 20. Rb5 {[%clk 0:01:11.9]}
20... Qc2 {[%clk 0:01:44.2]} 21. Qxa5 {[%clk 0:01:06.8]} 21... Rdc8 {[%clk
0:01:42.6]} 22. Rc5 {[%clk 0:00:46.5]} 22... R3xc5 {[%clk 0:01:29.9]} 23. dxc5
{[%clk 0:00:45.3]} 23... Qxc5 {[%clk 0:01:27.6]} 24. Qa6 {[%clk 0:00:40.1]}
24... Bf6 {[%clk 0:01:26]} 25. g3 {[%clk 0:00:36.5]} 25... h5 {[%clk 0:01:24.4]}
26. Kg2 {[%clk 0:00:34.2]} 26... Kg7 {[%clk 0:01:24.4]} 27. Rd7 {[%clk
0:00:32.9]} 27... Rc7 {[%clk 0:01:19]} 28. Rd8 {[%clk 0:00:31.1]} 28... Qb6
{[%clk 0:01:11.6]} 29. Qd3 {[%clk 0:00:28.6]} 29... Rc3 {[%clk 0:01:10.1]} 30.
Qd2 {[%clk 0:00:29.3]} 30... Ra3 {[%clk 0:01:08.8]} 31. Rc8 {[%clk 0:00:19.6]}
31... Rxf3 {[%clk 0:01:05.2]} 32. Kxf3 {[%clk 0:00:09.8]} 32... Qb7+ {[%clk
0:01:05.2]} 33. Ke2 {[%clk 0:00:10.3]} 33... Qxc8 {[%clk 0:01:03.7]} 0-1

[Event "Late-Titled-Tuesday-Blitz-January-30-2024"]
[Site "Chess.com"]
[Date "2024.01.30"]
[Round "1"]
[White "YurasovMat-2012"]
[Black "KorolDimitriy75"]
[Result "1-0"]
[WhiteElo "2673"]
[BlackElo "2374"]
[TimeControl "180+1"]
[EndTime "14:06:18 PST"]
[Termination "YurasovMat-2012 won by checkmate"]

1. e4 {[%clk 0:03:00.9]} 1... c5 {[%clk 0:02:59.8]} 2. Nf3 {[%clk 0:03:00.3]}
2... d6 {[%clk 0:02:59.8]} 3. Bb5+ {[%clk 0:02:59.3]} 3... Nd7 {[%clk 0:02:59]}
4. O-O {[%clk 0:02:58.2]} 4... Nf6 {[%clk 0:02:59.3]} 5. Re1 {[%clk 0:02:57.8]}
5... a6 {[%clk 0:02:59.7]} 6. Bxd7+ {[%clk 0:02:57.5]} 6... Bxd7 {[%clk
0:03:00.6]} 7. e5 {[%clk 0:02:57.9]} 7... dxe5 {[%clk 0:03:00.4]} 8. Nxe5 {[%clk
0:02:58.8]} 8... e6 {[%clk 0:02:44.3]} 9. b3 {[%clk 0:02:56.5]} 9... Be7 {[%clk
0:02:36.3]} 10. Bb2 {[%clk 0:02:55.3]} 10... O-O {[%clk 0:02:36.1]} 11. d3
{[%clk 0:02:55.2]} 11... Qc7 {[%clk 0:02:32.4]} 12. Nd2 {[%clk 0:02:53.9]} 12...
Rfd8 {[%clk 0:02:21.8]} 13. Qf3 {[%clk 0:02:49.8]} 13... Be8 {[%clk 0:02:18.8]}
14. Ng4 {[%clk 0:02:47.8]} 14... Nxg4 {[%clk 0:01:56.2]} 15. Qxg4 {[%clk
0:02:48.7]} 15... Bf8 {[%clk 0:01:55.7]} 16. Bf6 {[%clk 0:02:41.3]} 16... Rd5
{[%clk 0:01:45.6]} 17. Bb2 {[%clk 0:02:38.3]} 17... Kh8 {[%clk 0:01:31.5]} 18.
Nf3 {[%clk 0:02:32.5]} 18... Rf5 {[%clk 0:01:14.6]} 19. Re5 {[%clk 0:02:26]}
19... Rxe5 {[%clk 0:01:08.8]} 20. Bxe5 {[%clk 0:02:24.8]} 20... Qe7 {[%clk
0:01:04.2]} 21. Bb2 {[%clk 0:02:09]} 21... f6 {[%clk 0:01:03.7]} 22. Nh4 {[%clk
0:02:02.2]} 22... e5 {[%clk 0:01:00.4]} 23. Re1 {[%clk 0:02:01.4]} 23... Rd8
{[%clk 0:00:57.2]} 24. f4 {[%clk 0:02:00.9]} 24... Bd7 {[%clk 0:00:30]} 25. Qh5
{[%clk 0:01:55.5]} 25... Be8 {[%clk 0:00:29.9]} 26. Qf3 {[%clk 0:01:48.1]} 26...
Bc6 {[%clk 0:00:19.5]} 27. Qe3 {[%clk 0:01:45.6]} 27... Re8 {[%clk 0:00:13.2]}
28. fxe5 {[%clk 0:01:44.9]} 28... fxe5 {[%clk 0:00:12.8]} 29. Qg3 {[%clk
0:01:36.3]} 29... e4 {[%clk 0:00:10.5]} 30. Nf5 {[%clk 0:01:35.7]} 30... Qf7
{[%clk 0:00:10.5]} 31. Rf1 {[%clk 0:01:35.6]} 31... Qg6 {[%clk 0:00:08.7]} 32.
Qf2 {[%clk 0:01:18.6]} 32... exd3 {[%clk 0:00:08.1]} 33. cxd3 {[%clk 0:01:16.5]}
33... b5 {[%clk 0:00:07.6]} 34. Nxg7 {[%clk 0:01:11.5]} 34... Bxg7 {[%clk
0:00:04.9]} 35. Qf8+ {[%clk 0:01:10.6]} 35... Rxf8 {[%clk 0:00:02.4]} 36. Rxf8#
{[%clk 0:01:11.2]} 1-0

[Event "Late-Titled-Tuesday-Blitz-January-30-2024"]
[Site "Chess.com"]
[Date "2024.01.30"]
[Round "1"]
[White "koziororo"]
[Black "TheMagician"]
[Result "1-0"]
[WhiteElo "2592"]
[BlackElo "2190"]
[TimeControl "180+1"]
[EndTime "14:06:22 PST"]
[Termination "koziororo won on time"]

1. Na3 {[%clk 0:02:58.6]} 1... d5 {[%clk 0:02:56.7]} 2. c4 {[%clk 0:02:58.5]}
2... c6 {[%clk 0:02:52.7]} 3. e3 {[%clk 0:02:53.3]} 3... g6 {[%clk 0:02:50.6]}
4. d4 {[%clk 0:02:47.3]} 4... Bg7 {[%clk 0:02:47.6]} 5. Bd2 {[%clk 0:02:45.9]}
5... Nf6 {[%clk 0:02:34.5]} 6. Bd3 {[%clk 0:02:45]} 6... O-O {[%clk 0:02:31.1]}
7. Ne2 {[%clk 0:02:43.4]} 7... Re8 {[%clk 0:01:55.3]} 8. O-O {[%clk 0:02:40.4]}
8... a6 {[%clk 0:01:43.9]} 9. Rc1 {[%clk 0:02:39.6]} 9... Nbd7 {[%clk
0:01:27.2]} 10. Qb3 {[%clk 0:02:36.4]} 10... e5 {[%clk 0:01:20.3]} 11. cxd5
{[%clk 0:02:26.6]} 11... cxd5 {[%clk 0:01:19.1]} 12. dxe5 {[%clk 0:02:22.5]}
12... Nxe5 {[%clk 0:01:18.7]} 13. Bb1 {[%clk 0:02:22.3]} 13... b5 {[%clk
0:01:15.7]} 14. Rfd1 {[%clk 0:02:21.3]} 14... Bg4 {[%clk 0:01:09.2]} 15. f3
{[%clk 0:02:18.8]} 15... Be6 {[%clk 0:01:02.1]} 16. Nd4 {[%clk 0:02:18.5]} 16...
Nc4 {[%clk 0:01:01.6]} 17. Nxc4 {[%clk 0:02:11.4]} 17... bxc4 {[%clk 0:00:54.3]}
18. Qa4 {[%clk 0:02:07]} 18... Bd7 {[%clk 0:00:52.8]} 19. Qc2 {[%clk 0:02:00.4]}
19... Qb6 {[%clk 0:00:51.3]} 20. Re1 {[%clk 0:01:58.7]} 20... a5 {[%clk
0:00:44.9]} 21. Bc3 {[%clk 0:01:58.4]} 21... a4 {[%clk 0:00:44.4]} 22. a3 {[%clk
0:01:57.9]} 22... Rab8 {[%clk 0:00:36.4]} 23. Qf2 {[%clk 0:01:57.2]} 23... Qb7
{[%clk 0:00:30.6]} 24. Re2 {[%clk 0:01:55.3]} 24... Qc8 {[%clk 0:00:30.4]} 25.
Rce1 {[%clk 0:01:55.1]} 25... h5 {[%clk 0:00:24.8]} 26. Qh4 {[%clk 0:01:53.6]}
26... Nh7 {[%clk 0:00:23.4]} 27. Qg3 {[%clk 0:01:47.9]} 27... Be5 {[%clk
0:00:20]} 28. Qh4 {[%clk 0:01:38.3]} 28... Bf6 {[%clk 0:00:19.5]} 29. Qf2 {[%clk
0:01:38.2]} 29... Qd8 {[%clk 0:00:16.9]} 30. e4 {[%clk 0:01:32.2]} 30... dxe4
{[%clk 0:00:11.7]} 31. Bxe4 {[%clk 0:01:33.1]} 31... Ng5 {[%clk 0:00:09.8]} 32.
Bc2 {[%clk 0:01:33.4]} 32... Rxe2 {[%clk 0:00:09.4]} 33. Rxe2 {[%clk 0:01:34.3]}
33... h4 {[%clk 0:00:06]} 34. Rd2 {[%clk 0:01:30.1]} 34... Qb6 {[%clk
0:00:04.5]} 35. Kh1 {[%clk 0:01:18.7]} 35... Re8 {[%clk 0:00:03.3]} 36. Rd1
{[%clk 0:01:13.9]} 1-0

[Event "Late-Titled-Tuesday-Blitz-January-30-2024"]
[Site "Chess.com"]
[Date "2024.01.30"]
[Round "1"]
[White "ChristopherYoo"]
[Black "EvilMorty23"]
[Result "1-0"]
[WhiteElo "2939"]
[BlackElo "2512"]
[TimeControl "180+1"]
[EndTime "14:06:32 PST"]
[Termination "ChristopherYoo won by resignation"]

1. Nf3 {[%clk 0:02:59.7]} 1... Nf6 {[%clk 0:02:59.9]} 2. c4 {[%clk 0:02:59.9]}
2... e6 {[%clk 0:02:59.5]} 3. Nc3 {[%clk 0:03:00.1]} 3... d5 {[%clk 0:02:59.7]}
4. e3 {[%clk 0:03:00.3]} 4... Be7 {[%clk 0:02:59]} 5. b3 {[%clk 0:03:00.5]} 5...
O-O {[%clk 0:02:58.9]} 6. Bb2 {[%clk 0:03:00.6]} 6... b6 {[%clk 0:02:57.7]} 7.
cxd5 {[%clk 0:02:59.1]} 7... Nxd5 {[%clk 0:02:57.2]} 8. Nxd5 {[%clk 0:02:58.1]}
8... Qxd5 {[%clk 0:02:56.7]} 9. Qc2 {[%clk 0:02:45.2]} 9... c5 {[%clk
0:02:24.4]} 10. Bd3 {[%clk 0:01:25.5]} 10... f5 {[%clk 0:02:17.5]} 11. Bc4
{[%clk 0:01:10.4]} 11... Qd6 {[%clk 0:02:07.8]} 12. Be5 {[%clk 0:00:49.6]} 12...
Qd7 {[%clk 0:02:06.8]} 13. Qb2 {[%clk 0:00:46.7]} 13... Bf6 {[%clk 0:02:01.9]}
14. Bxf6 {[%clk 0:00:44.7]} 14... Rxf6 {[%clk 0:02:00.3]} 15. d4 {[%clk
0:00:26.1]} 15... Bb7 {[%clk 0:01:41.8]} 16. dxc5 {[%clk 0:00:21.9]} 16... bxc5
{[%clk 0:01:42.7]} 17. Rd1 {[%clk 0:00:20.4]} 17... Qe7 {[%clk 0:01:39.7]} 18.
Ne5 {[%clk 0:00:16.4]} 18... Bc6 {[%clk 0:00:39.6]} 19. O-O {[%clk 0:00:11]}
19... Be8 {[%clk 0:00:37.4]} 20. Rd2 {[%clk 0:00:10]} 20... Nc6 {[%clk
0:00:37.4]} 21. Rfd1 {[%clk 0:00:10.1]} 21... Rd8 {[%clk 0:00:32.1]} 22. Nxc6
{[%clk 0:00:06.4]} 1-0

[Event "Late-Titled-Tuesday-Blitz-January-30-2024"]
[Site "Chess.com"]
[Date "2024.01.30"]
[Round "1"]
[White "Byniolus"]
[Black "emeli_chess"]
[Result "1-0"]
[WhiteElo "2848"]
[BlackElo "2480"]
[TimeControl "180+1"]
[EndTime "14:06:41 PST"]
[Termination "Byniolus won by resignation"]

1. d4 {[%clk 0:03:00.9]} 1... Nf6 {[%clk 0:02:58.7]} 2. Nf3 {[%clk 0:03:01.3]}
2... d5 {[%clk 0:02:57.6]} 3. Bf4 {[%clk 0:03:01.5]} 3... e6 {[%clk 0:02:56.4]}
4. e3 {[%clk 0:03:01.7]} 4... Bd6 {[%clk 0:02:56.3]} 5. Bg3 {[%clk 0:03:02.1]}
5... O-O {[%clk 0:02:56]} 6. Nbd2 {[%clk 0:03:02.4]} 6... c5 {[%clk 0:02:54.5]}
7. c3 {[%clk 0:03:02.8]} 7... Qc7 {[%clk 0:02:54.1]} 8. Rc1 {[%clk 0:03:03]}
8... Nbd7 {[%clk 0:02:50.6]} 9. c4 {[%clk 0:02:58.6]} 9... dxc4 {[%clk
0:02:23.7]} 10. Bxc4 {[%clk 0:02:53.8]} 10... Bxg3 {[%clk 0:01:50.8]} 11. hxg3
{[%clk 0:02:54.7]} 11... Qd6 {[%clk 0:01:42.6]} 12. O-O {[%clk 0:02:24.8]} 12...
cxd4 {[%clk 0:01:37.7]} 13. Nxd4 {[%clk 0:02:22.3]} 13... a6 {[%clk 0:01:35.8]}
14. Be2 {[%clk 0:02:10.7]} 14... Ne5 {[%clk 0:01:17.1]} 15. f4 {[%clk
0:01:40.5]} 15... Nc6 {[%clk 0:01:16.6]} 16. Nxc6 {[%clk 0:01:32.3]} 16... bxc6
{[%clk 0:01:17.5]} 17. Nc4 {[%clk 0:01:26.9]} 17... Qc5 {[%clk 0:00:58.7]} 18.
Qd6 {[%clk 0:01:17]} 18... Qxd6 {[%clk 0:00:48.3]} 19. Nxd6 {[%clk 0:01:17.9]}
19... Rb8 {[%clk 0:00:48.1]} 20. b3 {[%clk 0:01:12.8]} 20... Bd7 {[%clk
0:00:46]} 21. e4 {[%clk 0:01:05.8]} 21... Rb4 {[%clk 0:00:41.2]} 22. Bf3 {[%clk
0:01:01]} 22... Rfb8 {[%clk 0:00:28.1]} 23. Rfd1 {[%clk 0:00:59]} 23... Kf8
{[%clk 0:00:26]} 24. g4 {[%clk 0:00:53.7]} 24... Ke7 {[%clk 0:00:23.3]} 25. g5
{[%clk 0:00:51.1]} 25... Ne8 {[%clk 0:00:19.1]} 26. Nxf7 {[%clk 0:00:49.5]}
26... a5 {[%clk 0:00:14.7]} 27. Ne5 {[%clk 0:00:48.4]} 27... R8b7 {[%clk
0:00:11.5]} 28. Rxd7+ {[%clk 0:00:40.6]} 28... Rxd7 {[%clk 0:00:10.9]} 29. Nxc6+
{[%clk 0:00:41.5]} 29... Kd6 {[%clk 0:00:09.1]} 30. e5+ {[%clk 0:00:35.3]} 1-0

[Event "Late-Titled-Tuesday-Blitz-January-30-2024"]
[Site "Chess.com"]
[Date "2024.01.30"]
[Round "1"]
[White "Lion-Al-Messi"]
[Black "larsmandreassen"]
[Result "1-0"]
[WhiteElo "2598"]
[BlackElo "2206"]
[TimeControl "180+1"]
[EndTime "14:06:42 PST"]
[Termination "Lion-Al-Messi won by resignation"]

1. e4 {[%clk 0:03:00.9]} 1... d6 {[%clk 0:02:57]} 2. d4 {[%clk 0:03:00.6]} 2...
Nf6 {[%clk 0:02:57.4]} 3. Nc3 {[%clk 0:03:01]} 3... e5 {[%clk 0:02:57.1]} 4. Nf3
{[%clk 0:03:00.1]} 4... Nbd7 {[%clk 0:02:53.9]} 5. Bc4 {[%clk 0:02:59.5]} 5...
Be7 {[%clk 0:02:54.4]} 6. O-O {[%clk 0:02:58.2]} 6... O-O {[%clk 0:02:54.1]} 7.
Qe2 {[%clk 0:02:56.1]} 7... c6 {[%clk 0:02:53.8]} 8. a4 {[%clk 0:02:55.6]} 8...
Qc7 {[%clk 0:02:52.5]} 9. b3 {[%clk 0:02:56]} 9... exd4 {[%clk 0:02:41.9]} 10.
Nxd4 {[%clk 0:02:56.9]} 10... Ne5 {[%clk 0:02:42.4]} 11. Nf5 {[%clk 0:02:55.4]}
11... Nxc4 {[%clk 0:02:39.8]} 12. Qxc4 {[%clk 0:02:49.7]} 12... Bxf5 {[%clk
0:02:38.7]} 13. exf5 {[%clk 0:02:50.6]} 13... d5 {[%clk 0:02:37.1]} 14. Qd3
{[%clk 0:02:49.9]} 14... Bd6 {[%clk 0:02:27.8]} 15. g3 {[%clk 0:02:48.1]} 15...
Be5 {[%clk 0:02:24]} 16. Bd2 {[%clk 0:02:45.2]} 16... Ne4 {[%clk 0:02:06.5]} 17.
Rae1 {[%clk 0:02:41]} 17... Bxc3 {[%clk 0:01:56.4]} 18. Bxc3 {[%clk 0:02:41.9]}
18... Nxc3 {[%clk 0:01:56.5]} 19. Qxc3 {[%clk 0:02:42.2]} 19... Rfe8 {[%clk
0:01:52.8]} 20. f6 {[%clk 0:02:42]} 20... Re6 {[%clk 0:01:31.6]} 21. fxg7 {[%clk
0:02:39.5]} 21... Rae8 {[%clk 0:01:30.3]} 22. Rxe6 {[%clk 0:02:34.6]} 22... Rxe6
{[%clk 0:01:31.2]} 23. Qd4 {[%clk 0:02:24.4]} 23... b6 {[%clk 0:01:29]} 24. h4
{[%clk 0:02:11.7]} 24... f6 {[%clk 0:01:23.7]} 25. Qg4 {[%clk 0:02:10.3]} 25...
Re4 {[%clk 0:01:18.8]} 26. Qf5 {[%clk 0:02:10.3]} 26... Qxg7 {[%clk 0:01:17.2]}
27. Qc8+ {[%clk 0:02:10.5]} 27... Qf8 {[%clk 0:01:13.2]} 28. Qxc6 {[%clk
0:02:09.8]} 28... Qf7 {[%clk 0:01:09.1]} 29. Rd1 {[%clk 0:02:08]} 29... Re5
{[%clk 0:00:45.3]} 30. Qc8+ {[%clk 0:02:07.5]} 30... Kg7 {[%clk 0:00:45]} 31.
Qg4+ {[%clk 0:02:08.4]} 31... Kh8 {[%clk 0:00:39.9]} 32. Qf4 {[%clk 0:02:05.7]}
32... Qe6 {[%clk 0:00:37.4]} 33. Kh2 {[%clk 0:02:04.4]} 33... h5 {[%clk
0:00:26]} 34. Qh6+ {[%clk 0:02:04.1]} 34... Kg8 {[%clk 0:00:26.4]} 35. Qg6+
{[%clk 0:02:01.3]} 35... Kh8 {[%clk 0:00:25.8]} 36. Rd3 {[%clk 0:01:58]} 36...
Rf5 {[%clk 0:00:20.9]} 37. Rd2 {[%clk 0:01:38]} 37... Qe4 {[%clk 0:00:21.1]} 38.
Qh6+ {[%clk 0:01:36.6]} 38... Kg8 {[%clk 0:00:20.9]} 39. Qe3 {[%clk 0:01:34.6]}
39... Qg4 {[%clk 0:00:17.8]} 40. Qe8+ {[%clk 0:01:34]} 40... Kg7 {[%clk
0:00:17.7]} 41. Qe7+ {[%clk 0:01:31]} 41... Kg6 {[%clk 0:00:18.2]} 42. Qe8+
{[%clk 0:01:30.9]} 42... Kg7 {[%clk 0:00:18.1]} 43. Re2 {[%clk 0:01:28.1]} 43...
Re5 {[%clk 0:00:14.1]} 44. Rxe5 {[%clk 0:01:26.2]} 44... fxe5 {[%clk 0:00:14]}
45. Qxe5+ {[%clk 0:01:27.1]} 45... Kg6 {[%clk 0:00:12.5]} 46. Qd6+ {[%clk
0:01:26.9]} 46... Kh7 {[%clk 0:00:09.8]} 47. Qe7+ {[%clk 0:01:26.8]} 47... Kh6
{[%clk 0:00:07.7]} 48. Qd6+ {[%clk 0:01:25.5]} 48... Kh7 {[%clk 0:00:07.6]} 49.
Qxd5 {[%clk 0:01:25.9]} 49... Qe2 {[%clk 0:00:07.3]} 50. Qd3+ {[%clk 0:01:26.2]}
1-0

[Event "Late-Titled-Tuesday-Blitz-January-30-2024"]
[Site "Chess.com"]
[Date "2024.01.30"]
[Round "1"]
[White "TudorAnton"]
[Black "GMBenjaminBok"]
[Result "0-1"]
[WhiteElo "2512"]
[BlackElo "2939"]
[TimeControl "180+1"]
[EndTime "14:06:44 PST"]
[Termination "GMBenjaminBok won by resignation"]

1. d4 {[%clk 0:02:55.3]} 1... Nf6 {[%clk 0:02:50.4]} 2. Nf3 {[%clk 0:02:53.7]}
2... e6 {[%clk 0:02:48.2]} 3. c4 {[%clk 0:02:52.2]} 3... b6 {[%clk 0:02:44.9]}
4. Nc3 {[%clk 0:02:52]} 4... Bb7 {[%clk 0:02:44]} 5. g3 {[%clk 0:02:49.7]} 5...
Bb4 {[%clk 0:02:40]} 6. Bg2 {[%clk 0:02:49]} 6... Bxc3+ {[%clk 0:02:37.7]} 7.
bxc3 {[%clk 0:02:49.9]} 7... O-O {[%clk 0:02:37.6]} 8. O-O {[%clk 0:02:49.2]}
8... h6 {[%clk 0:02:35.9]} 9. c5 {[%clk 0:02:39.2]} 9... bxc5 {[%clk 0:02:33.3]}
10. Ba3 {[%clk 0:02:36.6]} 10... Re8 {[%clk 0:02:27.2]} 11. dxc5 {[%clk
0:02:33]} 11... Nc6 {[%clk 0:02:18.9]} 12. Rb1 {[%clk 0:02:27.3]} 12... Rb8
{[%clk 0:02:18.1]} 13. Qa4 {[%clk 0:02:25.7]} 13... Ba8 {[%clk 0:02:11.2]} 14.
Rb3 {[%clk 0:02:10.1]} 14... Nd5 {[%clk 0:01:47]} 15. Rxb8 {[%clk 0:02:04.5]}
15... Qxb8 {[%clk 0:01:45.6]} 16. Qc2 {[%clk 0:02:05.4]} 16... Qc8 {[%clk
0:01:36.9]} 17. e4 {[%clk 0:02:02]} 17... Nde7 {[%clk 0:01:32.7]} 18. Nd4 {[%clk
0:01:58]} 18... Qa6 {[%clk 0:01:31.4]} 19. Bc1 {[%clk 0:01:58.6]} 19... Qc4
{[%clk 0:01:28.7]} 20. Nb3 {[%clk 0:01:55.1]} 20... a5 {[%clk 0:01:23]} 21. Rd1
{[%clk 0:01:47.2]} 21... a4 {[%clk 0:01:18.3]} 22. Nd4 {[%clk 0:01:46.9]} 22...
Qxc5 {[%clk 0:01:12.5]} 23. Qxa4 {[%clk 0:01:32.7]} 23... Rb8 {[%clk 0:00:43]}
24. Be3 {[%clk 0:01:10.8]} 24... Qxc3 {[%clk 0:00:37.2]} 25. Nb5 {[%clk
0:01:07.7]} 25... Qe5 {[%clk 0:00:36]} 26. Bf1 {[%clk 0:01:00.7]} 26... d5
{[%clk 0:00:19.2]} 27. Bf4 {[%clk 0:00:40]} 27... Qxe4 {[%clk 0:00:19.5]} 28.
Qa3 {[%clk 0:00:32.1]} 28... e5 {[%clk 0:00:18.1]} 29. Bd3 {[%clk 0:00:30.6]}
29... Qb4 {[%clk 0:00:16.6]} 30. Qc1 {[%clk 0:00:18.5]} 30... exf4 {[%clk
0:00:14.8]} 0-1

[Event "Late-Titled-Tuesday-Blitz-January-30-2024"]
[Site "Chess.com"]
[Date "2024.01.30"]
[Round "1"]
[White "aistrel"]
[Black "Firouzja2003"]
[Result "0-1"]
[WhiteElo "2539"]
[BlackElo "3137"]
[TimeControl "180+1"]
[EndTime "14:06:46 PST"]
[Termination "Firouzja2003 won by resignation"]

1. d4 {[%clk 0:03:00.9]} 1... Nf6 {[%clk 0:02:50]} 2. Nc3 {[%clk 0:02:59.5]}
2... d5 {[%clk 0:02:50]} 3. Bf4 {[%clk 0:02:59.3]} 3... c5 {[%clk 0:02:50.3]} 4.
e3 {[%clk 0:02:59.4]} 4... cxd4 {[%clk 0:02:49.9]} 5. exd4 {[%clk 0:03:00.3]}
5... Bg4 {[%clk 0:02:49.2]} 6. Be2 {[%clk 0:02:58.5]} 6... Bxe2 {[%clk
0:02:49.2]} 7. Qxe2 {[%clk 0:02:59.4]} 7... Nc6 {[%clk 0:02:49.2]} 8. Nb5 {[%clk
0:02:59.8]} 8... Kd7 {[%clk 0:02:30.9]} 9. Nf3 {[%clk 0:02:44.6]} 9... a6 {[%clk
0:02:31]} 10. Nc7 {[%clk 0:02:38.7]} 10... Rc8 {[%clk 0:02:26.2]} 11. Ne5+
{[%clk 0:02:39.2]} 11... Nxe5 {[%clk 0:02:24.9]} 12. dxe5 {[%clk 0:02:40.1]}
12... Rxc7 {[%clk 0:02:11.2]} 13. exf6 {[%clk 0:02:36.2]} 13... Rc6 {[%clk
0:02:11.9]} 14. O-O-O {[%clk 0:02:18.6]} 14... e6 {[%clk 0:02:06.8]} 15. Qg4
{[%clk 0:01:58.7]} 15... Qxf6 {[%clk 0:01:51.6]} 16. Rxd5+ {[%clk 0:01:58.8]}
16... Kc8 {[%clk 0:01:52.3]} 17. Rhd1 {[%clk 0:01:57]} 17... Be7 {[%clk
0:01:35.6]} 18. Rd7 {[%clk 0:01:45]} 18... Ba3 {[%clk 0:01:11]} 19. bxa3 {[%clk
0:01:27.2]} 19... Qc3 {[%clk 0:01:10.7]} 20. Rc7+ {[%clk 0:00:38.1]} 20... Rxc7
{[%clk 0:01:09.7]} 21. Bxc7 {[%clk 0:00:39]} 21... Kxc7 {[%clk 0:01:06.3]} 22.
Rd3 {[%clk 0:00:30.8]} 22... Qe1+ {[%clk 0:01:01.2]} 23. Kb2 {[%clk 0:00:30.5]}
23... Qe5+ {[%clk 0:01:01.3]} 24. Kb3 {[%clk 0:00:24.3]} 24... Rc8 {[%clk
0:00:41.2]} 25. Qg3 {[%clk 0:00:17.1]} 25... Qxg3 {[%clk 0:00:40.6]} 26. Rxg3
{[%clk 0:00:17.7]} 26... g6 {[%clk 0:00:41]} 27. Rf3 {[%clk 0:00:18.4]} 27...
Rf8 {[%clk 0:00:40]} 28. c4 {[%clk 0:00:18.4]} 28... Kd6 {[%clk 0:00:39.9]} 29.
g4 {[%clk 0:00:18.2]} 29... f5 {[%clk 0:00:40.2]} 30. g5 {[%clk 0:00:17.1]}
30... e5 {[%clk 0:00:40.7]} 31. Rh3 {[%clk 0:00:17.2]} 31... Rf7 {[%clk
0:00:40.9]} 32. Rd3+ {[%clk 0:00:17.7]} 32... Ke6 {[%clk 0:00:41.4]} 33. c5
{[%clk 0:00:17.5]} 33... e4 {[%clk 0:00:41.8]} 34. Rd6+ {[%clk 0:00:17.5]} 34...
Ke5 {[%clk 0:00:42.4]} 35. Kc4 {[%clk 0:00:17.4]} 35... Kf4 {[%clk 0:00:42.9]}
36. c6 {[%clk 0:00:13.8]} 36... bxc6 {[%clk 0:00:42.5]} 37. Rxc6 {[%clk
0:00:14.7]} 37... Kf3 {[%clk 0:00:43.1]} 38. Rxa6 {[%clk 0:00:13.7]} 38... Kxf2
{[%clk 0:00:43.5]} 39. Re6 {[%clk 0:00:14.5]} 39... e3 {[%clk 0:00:43.4]} 40.
Kd3 {[%clk 0:00:12.2]} 40... Rd7+ {[%clk 0:00:44]} 41. Kc2 {[%clk 0:00:12.8]}
41... e2 {[%clk 0:00:44.6]} 0-1